Workbook

Sheet Sheet1
B1: l'Hopital's Rule: 0/0 as x → ∞
B3: This DIGMath spreadsheet provides a
B4: graphical representation of l'Hopital's Rule for
B5: finding the limit of the indeterminate form 0/0
C6: lim x → ¥ f(x) / g(x)
B7: where lim x → ¥ f(x) = lim x → ¥ g(x) = 0
A11: Enter the numerator function: f(x) = | E11: exp(-x)
C12: =IF(ABS(Sheet2!D2)>0.0001,"That may not become zero as x → infinity","") -> 
A13: Enter the denominator function: g(x) = | E13: 1/x^10
I17: The graphs of the ratios f(x) / g(x) and f '(x) / g'(x)
A19: The interval for x starts at x = 1 | I19: Now trace along the curves:
A20: and extends to xMax = | D20: =C21 -> 27 | I20: x = | J20: =Sheet2!A15+K20*dx -> 18.49 | K20: 337
C21: 27 | I21: f / g = | J21: =LOOKUP(J$20,Sheet2!C3:C504,Sheet2!F3:F504) -> 43597.26
I22: f '/g ' = | J22: =LOOKUP(J$20,Sheet2!C4:C505,Sheet2!I4:I505) -> 79768.94
A24: Click each item below for suggestions and investigations
C25: Item 1
C26: Item 2
C27: Item 3
C28: Item 4
C29: Item 5
A32: To access/download all the DIGMath Apps for Calculus
A33: Click this link: | C33: DIGMath for Calculus
A35: Created by: Sheldon P. Gordon
A36: Farmingdale State College
A37: Development of this module was supported by the
A38: NSF's Division of Undergraduate Education
A39: under grants DUE-0310123 and DUE-0442160.

Sheet Sheet2
C1: x | D1: y = f(x) | E1: y = g(x) | F1: f(x)/g(x) | G1: f' | H1: g' | I1: f'/g/ | J1: Tracing points | M1: log x
C2: 1000 | D2: =EXP(-x) -> 0 | E2: =1/x^10 -> 1e-30 | M2: =LOG(C2) -> 3
C3: =a -> 1 | D3: 0.3678794412 | E3: 1 | F3: =D3/E3 -> 0.3678794412 | G3: =(D4-D3)/dx -> -0.3584966767 | H3: =(E4-E3)/dx -> -7.651120759 | I3: =G3/H3 -> 0.04685544615 | J3: 0 | K3: 0 | M3: =LOG(C3) -> 0
C4: =C3+dx -> 1.051896208 | D4: 0.3492748232 | E4: 0.6029358488 | F4: =D4/E4 -> 0.5792901913 | G4: -0.3403665695 | H4: -4.440327027 | I4: =G4/H4 -> 0.07665349138 | J4: =Sheet1!J$20 -> 18.48902196 | K4: =Sheet1!J21 -> 43597.25748 | M4: 0.02197288935 | N4: =LOG(J4) -> 1.266913938
C5: 1.103792415 | D5: 0.3316110891 | E5: 0.3724997157 | F5: 0.890231791 | G5: -0.3231533489 | H5: -2.644049366 | I5: 0.1222191057 | J5: on curve | M5: 0.04288740544
C6: 1.155688623 | D6: 0.3148406558 | E6: 0.235283581 | F6: 1.33813271 | G6: -0.3068106455 | H6: -1.611681955 | I6: 0.1903667435 | M6: 0.06284083786
C7: 1.20758483 | D7: 0.2989183469 | E7: 0.1516433996 | F7: 1.971192598 | G7: -0.291294435 | H7: -1.003612444 | I7: 0.2902459379 | J7: 0 | K7: 0 | M7: 0.08191764879
C8: 1.259481038 | D8: 0.2838012704 | E8: 0.09955971993 | F8: 2.850563165 | G8: -0.2765629195 | H8: -0.6373247355 | I8: 0.4339434893 | J8: =Sheet1!J$20 -> 18.48902196 | K8: =Sheet1!J22 -> 79768.935 | M8: 0.1001916334 | N8: =N4 -> 1.266913938
C9: 1.311377246 | D9: 0.2694487037 | E9: 0.06648498316 | F9: 4.052775392 | G9: -0.262576415 | H9: -0.412084822 | I9: 0.6371902118 | J9: on derivatives | M9: 0.1177276437
C10: 1.363273453 | D10: 0.2558219836 | E10: 0.04509934369 | F10: 5.672410342 | G10: -0.2492972444 | H10: -0.270922111 | I10: 0.920180503 | M10: 0.1345829778
C11: 1.415169661 | D11: 0.242884402 | E11: 0.03103951358 | F11: 7.825006709 | G11: -0.2366896358 | H11: -0.1808845461 | I11: 1.308512202 | M11: 0.1508085093
A12: delta x = | B12: =(Sheet1!D20-Sheet2!A15)/501 -> 0.05189620758 | C12: 1.467065868 | D12: 0.2306011075 | E12: 0.02165229163 | F12: 10.65019405 | G12: -0.2247196267 | H12: -0.1225128708 | I12: 1.834253212 | M12: 0.1664496132
C13: 1.518962076 | D13: 0.2189390112 | E13: 0.01529433825 | F13: 14.31503655 | G13: -0.2133549721 | H13: -0.08409270142 | I13: 2.537140186 | M13: 0.1815469309
C14: 1.570858283 | D14: 0.2078666972 | E14: 0.01093024597 | F14: 19.01756812 | G14: -0.2025650575 | H14: -0.05844493011 | I14: 3.465913247 | M14: 0.1961370065
A15: 1 | B15: =a | C15: 1.622754491 | D15: 0.197354339 | E15: 0.007897175741 | F15: 24.99049603 | G15: -0.1923208169 | H15: -0.0410960423 | I15: 4.679789248 | M15: 0.2102528197
C16: 1.674650699 | D16: 0.1873736179 | E16: 0.005764446998 | F16: 32.50504653 | G16: -0.1825946541 | H16: -0.02921479667 | I16: 6.250074447 | M16: 0.223924235
C17: 1.726546906 | D17: 0.1778976478 | E17: 0.004248309846 | F17: 41.87492304 | G17: -0.1733603687 | H17: -0.02098307126 | I17: 8.261915831 | M17: 0.2371783816
C18: 1.778443114 | D18: 0.1689009022 | E18: 0.003159368024 | F18: 53.46034425 | G18: -0.164593085 | H18: -0.0152172907 | I18: 10.81618852 | M18: 0.2500399782
C19: 1.830339321 | D19: 0.1603591453 | E19: 0.002369648347 | F19: 67.67212759 | G19: -0.1562691856 | H19: -0.01113701456 | I19: 14.03151489 | M19: 0.2625316098
C20: 1.882235529 | D20: 0.1522493672 | E20: 0.001791679528 | F20: 84.97578101 | G20: -0.1483662473 | H20: -0.008221372216 | I20: 18.04640922 | M20: 0.2746739669
C21: 1.934131737 | D21: 0.1445497216 | E21: 0.001365021488 | F21: 105.8955649 | G21: -0.1408629812 | H21: -0.006118747143 | I21: 23.02153986 | M21: 0.2864860512
C22: 1.986027944 | D22: 0.1372394671 | E22: 0.001047481716 | F22: 131.0184845 | G22: -0.1337391747 | H22: -0.004589208698 | I22: 29.14209912 | M22: 0.2979853549
C23: 2.037924152 | D23: 0.1302989111 | E23: 0.0008093191893 | F23: 160.9981733 | G23: -0.1269756376 | H23: -0.003467359469 | I23: 36.62026933 | M23: 0.3091880162
C24: 2.089820359 | D24: 0.1237093571 | E24: 0.0006293763825 | F24: 196.5586261 | G24: -0.1205541501 | H24: -0.002638075009 | I24: 45.69777195 | M24: 0.3201089558
C25: 2.141716567 | D25: 0.1174530539 | E25: 0.0004924702942 | F25: 238.4977434 | G25: -0.1144574139 | H25: -0.002020485001 | I25: 56.64848483 | M25: 0.3307619961
C26: 2.193612774 | D26: 0.1115131481 | E26: 0.0003876147852 | F26: 287.6906465 | G26: -0.1086690055 | H26: -0.001557283953 | I26: 69.78111172 | M26: 0.3411599666
C27: 2.245508982 | D27: 0.1058736389 | E27: 0.0003067976539 | F27: 345.0927265 | G27: -0.1031733319 | H27: -0.001207526384 | I27: 85.44188625 | M27: 0.3513147966
C28: 2.29740519 | D28: 0.1005193342 | E28: 0.000244131614 | F28: 411.74239 | G28: -0.0979555888 | H28: -0.0009417240809 | I28: 104.0172921 | M28: 0.3612375978
C29: 2.349301397 | D29: 0.09543581066 | E29: 0.0001952597056 | F29: 488.7634668 | G29: -0.09300172048 | H29: -0.0007384794255 | I29: 125.9367794 | M29: 0.370938737
C30: 2.401197605 | D30: 0.09060937406 | E30: 0.0001569354241 | F30: 577.367249 | G30: -0.08829838215 | H30: -0.0005821533931 | I30: 151.6754574 | M30: 0.3804279015
C31: 2.453093812 | D31: 0.0860270229 | E31: 0.0001267238707 | F31: 678.854129 | G31: -0.08383290384 | H31: -0.0004612368322 | I31: 181.7567418 | M31: 0.389714157
C32: 2.50499002 | D32: 0.08167641312 | E32: 0.0001027874283 | F32: 794.6148126 | G32: -0.07959325635 | H32: -0.0003672038923 | I32: 216.7549365 | M32: 0.3988059999
C33: 2.556886228 | D33: 0.07754582496 | E33: 8.373093892e-05 | F33: 926.1310808 | G33: -0.07556801884 | H33: -0.0002936987437 | I33: 257.2977258 | M33: 0.4077114039
C34: 2.608782435 | D34: 0.07362413137 | E34: 6.848908795e-05 | F34: 1074.976081 | G34: -0.07174634804 | H34: -0.0002359545111 | I34: 304.0685584 | M34: 0.4164378617
C35: 2.660678643 | D35: 0.069900768 | E35: 5.624394366e-05 | F35: 1242.814132 | G35: -0.06811794904 | H35: -0.0001903752235 | I35: 357.8088986 | M35: 0.4249924235
C36: 2.71257485 | D36: 0.06636570477 | E36: 4.636419154e-05 | F36: 1431.400022 | G36: -0.0646730476 | H36: -0.0001542330376 | I36: 419.3203259 | M36: 0.4333817309
C37: 2.764471058 | D37: 0.06300941887 | E37: 3.836008181e-05 | F37: 1642.577802 | G37: -0.06140236376 | H37: -0.0001254475409 | I37: 489.4664602 | M37: 0.4416120475
C38: 2.816367265 | D38: 0.05982286905 | E38: 3.184983018e-05 | F38: 1878.279059 | G38: -0.05829708689 | H38: -0.0001024238911 | I38: 569.1746942 | M38: 0.4496892879
C39: 2.868263473 | D39: 0.05679747133 | E39: 2.653441867e-05 | F39: 2140.520659 | G39: -0.05534885193 | H39: -8.393340396e-05 | I39: 659.4377128 | M39: 0.4576190423
C40: 2.920159681 | D40: 0.05392507582 | E40: 2.217859332e-05 | F40: 2431.401985 | G40: -0.05254971686 | H40: -6.902495281e-05 | I40: 761.3147815 | M40: 0.4654066003
C41: 2.972055888 | D41: 0.05119794481 | E41: 1.859646004e-05 | F41: 2753.10165 | G41: -0.04989214132 | H41: -5.69588695e-05 | I41: 875.9327873 | M41: 0.4730569719
C42: 3.023952096 | D42: 0.04860873188 | E42: 1.564051072e-05 | F42: 3107.873697 | G42: -0.04736896627 | H42: -4.715737043e-05 | I42: 1004.487015 | M42: 0.480574907
C43: 3.075848303 | D43: 0.04615046218 | E43: 1.319322204e-05 | F43: 3498.043317 | G43: -0.04497339473 | H43: -3.916718646e-05 | I43: 1148.241648 | M43: 0.4879649129
C44: 3.127744511 | D44: 0.04381651355 | E44: 1.11605936e-05 | F44: 3926.002069 | G44: -0.04269897345 | H44: -3.263125364e-05 | I44: 1308.529973 | M44: 0.4952312706
C45: 3.179640719 | D45: 0.04160059876 | E45: 9.467155284e-06 | F45: 4394.202642 | G45: -0.04053957557 | H45: -2.726716568e-05 | I45: 1486.75429 | M45: 0.5023780499
C46: 3.231536926 | D46: 0.03949674853 | E46: 8.052092794e-06 | F46: 4905.153175 | G46: -0.03848938403 | H46: -2.285069771e-05 | I46: 1684.385506 | M46: 0.5094091229
C47: 3.283433134 | D47: 0.03749929547 | E47: 6.866228242e-06 | F47: 5461.411148 | G47: -0.03654287601 | H47: -1.92031518e-05 | I47: 1902.962409 | M47: 0.5163281764
C48: 3.335329341 | D48: 0.03560285879 | E48: 5.86965749e-06 | F48: 6065.576884 | G48: -0.03469480794 | H48: -1.618159588e-05 | I48: 2144.09062 | M48: 0.523138724
C49: 3.387225549 | D49: 0.03380232983 | E49: 5.029894031e-06 | F49: 6720.286675 | G49: -0.03294020147 | H49: -1.367130323e-05 | I49: 2409.441216 | M49: 0.5298441165
C50: 3.439121756 | D50: 0.0320928583 | E50: 4.320405241e-06 | F50: 7428.205576 | G50: -0.03127433001 | H50: -1.157987277e-05 | I50: 2700.749017 | M50: 0.5364475516
C51: 3.491017964 | D51: 0.03046983918 | E51: 3.719453759e-06 | F51: 8192.01989 | G51: -0.02969270599 | H51: -9.83263867e-06 | I51: 3019.81055 | M51: 0.5429520836
C52: 3.542914172 | D52: 0.02892890034 | E52: 3.209177102e-06 | F52: 9014.429377 | G52: -0.02819106879 | H52: -8.369072942e-06 | I52: 3368.481669 | M52: 0.5493606315
C53: 3.594810379 | D53: 0.02746589079 | E53: 2.774853955e-06 | F53: 9898.139228 | G53: -0.02676537329 | H53: -7.139955913e-06 | I53: 3748.674868 | M53: 0.555675987
C54: 3.646706587 | D54: 0.02607686942 | E54: 2.404317321e-06 | F54: 10845.85183 | G54: -0.02541177891 | H54: -6.105142707e-06 | I54: 4162.356251 | M54: 0.5619008215
C55: 3.698602794 | D55: 0.02475809446 | E55: 2.087483568e-06 | F55: 11860.25837 | G55: -0.02412663931 | H55: -5.231794101e-06 | I55: 4611.542206 | M55: 0.5680376935
C56: 3.750499002 | D56: 0.02350601338 | E56: 1.815973295e-06 | F56: 12944.03031 | G56: -0.02290649255 | H56: -4.492970521e-06 | I56: 5098.295759 | M56: 0.5740890542
C57: 3.80239521 | D57: 0.02231725329 | E57: 1.582805164e-06 | F57: 14099.81076 | G57: -0.02174805179 | H57: -3.866510967e-06 | I57: 5624.722644 | M57: 0.5800572541
C58: 3.854291417 | D58: 0.02118861188 | E58: 1.382147908e-06 | F58: 15330.2058 | G58: -0.02064819637 | H58: -3.334136305e-06 | I58: 6192.967078 | M58: 0.5859445479
C59: 3.906187625 | D59: 0.02011704879 | E59: 1.209118879e-06 | F59: 16637.77578 | G59: -0.0196039635 | H59: -2.880729814e-06 | I59: 6805.207279 | M59: 0.5917530998
C60: 3.958083832 | D60: 0.01909967743 | E60: 1.059619926e-06 | F60: 18025.02667 | G60: -0.0186125402 | H60: -2.493758204e-06 | I60: 7463.650714 | M60: 0.5974849883
C61: 4.00998004 | D61: 0.01813375718 | E61: 9.302033328e-07 | F61: 19494.40143 | G61: -0.01767125574 | H61: -2.162804328e-06 | I61: 8170.529119 | M61: 0.6031422109
C62: 4.061876248 | D62: 0.01721668603 | E62: 8.179619904e-07 | F62: 21048.27147 | G62: -0.01677757448 | H62: -1.879188975e-06 | I62: 8928.093292 | M62: 0.6087266877
C63: 4.113772455 | D63: 0.01634599354 | E63: 7.204392093e-07 | F63: 22688.92827 | G63: -0.01592908901 | H63: -1.635663899e-06 | I63: 9738.60768 | M63: 0.6142402659
C64: 4.165668663 | D64: 0.01551933423 | E64: 6.35554456e-07 | F64: 24418.57512 | G64: -0.01512351364 | H64: -1.426162007e-06 | I64: 10604.34479 | M64: 0.6196847232
C65: 4.21756487 | D65: 0.01473448123 | E65: 5.615420565e-07 | F65: 26239.31913 | G65: -0.01435867831 | H65: -1.245593528e-06 | I65: 11527.57942 | M65: 0.6250617712
C66: 4.269461078 | D66: =EXP(-x) -> 0.01398932028 | E66: =1/x^10 -> 4.969004762e-07 | F66: 28153.16335 | G66: -0.01363252269 | H66: -1.08967927e-06 | I66: 12510.58276 | M66: 0.6303730587
C67: 4.321357285 | D67: 0.01328184405 | E67: 4.403502546e-07 | F67: 30161.99925 | G67: =(D68-D67)/dx -> -0.01294309064 | H67: =(E68-E67)/dx -> -9.548138781e-07 | I67: 13555.61638 | M67: =LOG(C67) -> 0.6356201748
C68: =C67+dx -> 4.373253493 | D68: 0.01261014673 | E68: 3.907990354e-07 | F68: =D68/E68 -> 32267.59943 | G68: -0.01228852496 | H68: -8.379534201e-07 | I68: =G68/H68 -> 14664.92608 | M68: 0.6408046517
C69: 4.425149701 | D69: 0.01197241889 | E69: 3.473124307e-07 | F69: 34471.61066 | G69: -0.01166706237 | H69: -7.365227589e-07 | I69: 15840.73571 | M69: 0.6459279672
C70: 4.477045908 | D70: 0.0113669426 | E70: 3.090896928e-07 | F70: 36775.54724 | G70: -0.01107702875 | H70: -6.483390439e-07 | I70: 17085.2409 | M70: 0.6509915477
C71: 4.528942116 | D71: 0.01079208681 | E71: 2.754433551e-07 | F71: 39180.78477 | G71: -0.01051683466 | H71: -5.715483778e-07 | I71: 18400.60277 | M71: 0.65599677
C72: 4.580838323 | D72: 0.01024630298 | E72: 2.457821619e-07 | F72: 41688.55421 | G72: -0.009984971042 | H72: -5.045732727e-07 | I72: 19788.94163 | M72: 0.660944964
C73: 4.632734531 | D73: 0.00972812085 | E73: 2.195967226e-07 | F73: 44299.93643 | G73: -0.009480005146 | H73: -4.460689642e-07 | I73: 21252.33071 | M73: 0.6658374146
C74: 4.684630739 | D74: 0.009236144535 | E74: 1.96447435e-07 | F74: 47015.85711 | G74: -0.009000576686 | H74: -3.948870117e-07 | I74: 22792.78989 | M74: 0.6706753637
C75: 4.736526946 | D75: 0.008769048739 | E75: 1.759542967e-07 | F75: 49837.08215 | G75: -0.008545394167 | H75: -3.500449095e-07 | I75: 24412.2795 | M75: 0.6754600124
C76: 4.788423154 | D76: 0.008325575189 | E76: 1.577882934e-07 | F76: 52764.21342 | G76: -0.00811323141 | H76: -3.107006628e-07 | I76: 26112.69425 | M76: 0.6801925221
C77: 4.840319361 | D77: 0.007904529248 | E77: 1.416641073e-07 | F77: 55797.68509 | G77: -0.007702924244 | H77: -2.761314771e-07 | I77: 27895.85716 | M77: 0.6848740171
C78: 4.892215569 | D78: 0.007504776692 | E78: 1.273339309e-07 | F78: 58937.76028 | G78: -0.007313367377 | H78: -2.457158601e-07 | I78: 29763.51373 | M78: 0.6895055854
C79: 4.944111776 | D79: 0.007125240661 | E79: 1.145822096e-07 | F79: 62184.52836 | G79: -0.006943511411 | H79: -2.189185613e-07 | I79: 31717.32616 | M79: 0.6940882807
C80: 4.996007984 | D80: 0.006764898751 | E80: 1.032211665e-07 | F80: 65537.90257 | G80: -0.006592360021 | H80: -1.952778769e-07 | I80: 33758.86775 | M80: 0.6986231237
C81: 5.047904192 | D81: 0.006422780267 | E81: 9.308698523e-08 | F81: 68997.61821 | G81: -0.006258967268 | H81: -1.74394928e-07 | I81: 35889.61754 | M81: 0.7031111035
C82: 5.099800399 | D82: 0.006097963602 | E82: 8.403654985e-08 | F82: 72563.23128 | G82: -0.005942435052 | H82: -1.559245902e-07 | I82: 38110.95508 | M82: 0.7075531786
C83: 5.151696607 | D83: 0.005789573759 | E83: 7.594465495e-08 | F83: 76234.11764 | G83: -0.005641910692 | H83: -1.395678062e-07 | I83: 40424.15543 | M83: 0.7119502787
C84: 5.203592814 | D84: 0.005496779991 | E84: 6.87016151e-08 | F84: 80009.4726 | G84: -0.005356584628 | H84: -1.250650607e-07 | I84: 42830.38443 | M84: 0.7163033053
C85: 5.255489022 | D85: 0.005218793563 | E85: 6.221121275e-08 | F85: 83888.311 | G85: -0.005085688243 | H85: -1.121908309e-07 | I85: 45330.69414 | M85: 0.7206131332
C86: 5.30738523 | D86: 0.00495486563 | E86: 5.63889341e-08 | F86: 87869.46782 | G86: -0.004828491792 | H86: -1.00748861e-07 | I86: 47926.01864 | M86: 0.7248806115
C87: 5.359281437 | D87: 0.004704285218 | E87: 5.116045029e-08 | F87: 91951.59916 | G87: -0.004584302432 | H87: -9.056812999e-08 | I87: 50617.17 | M87: 0.7291065642
C88: 5.411177645 | D88: 0.004466377307 | E88: 4.646030782e-08 | F88: 96133.18372 | G88: -0.004352462363 | H88: -8.149940719e-08 | I88: 53404.83462 | M88: 0.7332917917
C89: 5.463073852 | D89: 0.004240501017 | E89: 4.223079767e-08 | F89: 100412.5248 | G89: -0.004132347047 | H89: -7.341230467e-08 | I89: 56289.56978 | M89: 0.7374370715
C90: 5.51497006 | D90: 0.004026047877 | E90: 3.842097746e-08 | F90: 104787.7525 | G90: -0.003923363533 | H90: -6.619275091e-08 | I90: 59271.80061 | M90: 0.741543159
C91: 5.566866267 | D91: 0.003822440189 | E91: 3.498582472e-08 | F91: 109256.8267 | G91: -0.003724948859 | H91: -5.974082273e-08 | I91: 62351.81721 | M91: 0.7456107884
C92: 5.618762475 | D92: 0.003629129469 | E92: 3.188550258e-08 | F92: 113817.5401 | G92: -0.003536568529 | H92: -5.396888174e-08 | I92: 65529.77225 | M92: 0.7496406733
C93: 5.670658683 | D93: 0.003445594975 | E93: 2.908472229e-08 | F93: 118467.5219 | G93: -0.003357715082 | H93: -4.879997029e-08 | I93: 68805.6788 | M93: 0.7536335079
C94: 5.72255489 | D94: 0.003271342296 | E94: 2.655218891e-08 | F94: 123204.2416 | G94: -0.003187906717 | H94: -4.416642894e-08 | I94: 72179.4085 | M94: 0.7575899671
C95: 5.774451098 | D95: 0.003105902027 | E95: 2.426011874e-08 | F95: 128025.0134 | G95: -0.003026686002 | H95: -4.000870313e-08 | I95: 75650.6901 | M95: 0.7615107078
C96: 5.826347305 | D96: 0.002948828502 | E96: 2.218381878e-08 | F96: 132927.0011 | G96: -0.002873618637 | H96: -3.627431184e-08 | I96: 79219.10826 | M96: 0.7653963691
C97: 5.878243513 | D97: 0.002799698593 | E97: 2.030131956e-08 | F97: 137907.2225 | G97: -0.002728292286 | H97: -3.291695505e-08 | I97: 82884.10278 | M97: 0.7692475733
C98: 5.930139721 | D98: 0.00265811057 | E98: 1.859305443e-08 | F98: 142962.5552 | G98: -0.002590315465 | H98: -2.98957403e-08 | I98: 86644.96811 | M98: 0.7730649259
C99: 5.982035928 | D99: 0.002523683021 | E99: 1.704157888e-08 | F99: 148089.742 | G99: -0.00245931649 | H99: -2.717451167e-08 | I99: 90500.85317 | M99: 0.7768490171
C100: 6.033932136 | D100: 0.002396053822 | E100: 1.563132479e-08 | F100: 153285.3968 | G100: -0.002334942474 | H100: -2.472126678e-08 | I100: 94450.76156 | M100: 0.7806004213
C101: 6.085828343 | D101: 0.002274879163 | E101: 1.434838479e-08 | F101: 158546.0103 | G101: -0.002216858374 | H101: -2.250764976e-08 | I101: 98493.55207 | M101: 0.7843196985
C102: 6.137724551 | D102: 0.00215983262 | E102: 1.318032313e-08 | F102: 163867.9567 | G102: -0.002104746093 | H102: -2.05085097e-08 | I102: 102627.9395 | M102: 0.7880073942
C103: 6.189620758 | D103: 0.00205060428 | E103: 1.211600925e-08 | F103: 169247.5003 | G103: -0.001998303622 | H103: -1.870151563e-08 | I103: 106852.4959 | M103: 0.7916640404
C104: 6.241516966 | D104: 0.001946899901 | E104: 1.114547151e-08 | F104: 174680.8018 | G104: -0.001897244222 | H104: -1.706682048e-08 | I104: 111165.6517 | M104: 0.7952901554
C105: 6.293413174 | D105: 0.001848440121 | E105: 1.025976826e-08 | F105: 180163.9252 | G105: -0.001801295659 | H105: -1.558676741e-08 | I105: 115565.6982 | M105: 0.7988862449
C106: 6.345309381 | D106: 0.001754959707 | E106: 9.450874139e-09 | F106: 185692.8451 | G106: -0.001710199463 | H106: -1.424563287e-08 | I106: 120050.7888 | M106: 0.802452802
C107: 6.397205589 | D107: 0.001666206841 | E107: 8.711579818e-09 | F107: 191263.4534 | G107: -0.001623710238 | H107: -1.302940157e-08 | I107: 124618.942 | M107: 0.805990308
C108: 6.449101796 | D108: 0.001581942437 | E108: 8.03540329e-09 | F108: 196871.567 | G108: -0.001541594998 | H108: -1.192556919e-08 | I108: 129268.0436 | M108: 0.8094992322
C109: 6.500998004 | D109: 0.001501939503 | E109: 7.416511475e-09 | F109: 202512.9346 | G109: -0.001463632539 | H109: -1.092296918e-08 | I109: 133995.85 | M109: 0.8129800327
C110: 6.552894212 | D110: 0.001425982525 | E110: 6.849650799e-09 | F110: 208183.2442 | G110: -0.001389612843 | H110: -1.001162055e-08 | I110: 138799.9911 | M110: 0.8164331569
C111: 6.604790419 | D111: 0.001353866888 | E111: 6.330085661e-09 | F111: 213878.1307 | G111: -0.001319336516 | H111: -9.182594108e-09 | I111: 143677.9738 | M111: 0.8198590413
C112: 6.656686627 | D112: 0.001285398327 | E112: 5.853543851e-09 | F112: 219593.1831 | G112: -0.001252614245 | H112: -8.427894511e-09 | I112: 148627.186 | M112: 0.8232581124
C113: 6.708582834 | D113: 0.001220392398 | E113: 5.416168088e-09 | F113: 225323.9519 | G113: -0.001189266292 | H113: -7.74035646e-09 | I113: 153644.8997 | M113: 0.8266307866
C114: 6.760479042 | D114: 0.001158673988 | E114: 5.014472942e-09 | F114: 231065.9567 | G114: -0.00112912201 | H114: -7.113553035e-09 | I114: 158728.276 | M114: 0.8299774708
C115: 6.81237525 | D115: 0.001100076837 | E115: 4.645306517e-09 | F115: 236814.6931 | G115: -0.00107201938 | H115: -6.541714772e-09 | I115: 163874.3689 | M115: 0.8332985624
C116: 6.864271457 | D116: 0.001044443097 | E116: 4.305816329e-09 | F116: 242565.6408 | G116: -0.001017804578 | H116: -6.01965813e-09 | I116: 169080.1298 | M116: 0.83659445
C117: 6.916167665 | D117: 0.0009916228994 | E117: 3.993418902e-09 | F117: 248314.27 | G117: -0.0009663315592 | H117: -5.542722199e-09 | I117: 174342.4124 | M117: 0.8398655131
C118: 6.968063872 | D118: 0.0009414739562 | E118: 3.70577264e-09 | F118: 254056.0492 | G118: -0.0009174616647 | H118: -5.106712644e-09 | I118: 179657.9774 | M118: 0.8431121229
C119: 7.01996008 | D119: 0.0008938611752 | E119: 3.44075362e-09 | F119: 259786.452 | G119: -0.0008710632476 | H119: -4.707852025e-09 | I119: 185023.4976 | M119: 0.8463346424
C120: 7.071856287 | D120: 0.0008486562961 | E120: 3.196433954e-09 | F120: 265500.964 | G120: -0.0008270113189 | H120: -4.34273571e-09 | I120: 190435.5627 | M120: 0.8495334265
C121: 7.123752495 | D121: 0.000805737545 | E121: 2.97106244e-09 | F121: 271195.0897 | G121: -0.0007851872104 | H121: -4.008292736e-09 | I121: 195890.6852 | M121: 0.8527088221
C122: 7.175648703 | D122: 0.0007649893066 | E122: 2.763047249e-09 | F122: 276864.3594 | G122: -0.0007454782557 | H122: -3.70175101e-09 | I122: 201385.3049 | M122: 0.8558611689
C123: 7.22754491 | D123: 0.0007263018122 | E123: 2.57094041e-09 | F123: 282504.3356 | G123: -0.0007077774859 | H123: -3.420606369e-09 | I123: 206915.7949 | M123: 0.8589907989
C124: 7.279441118 | D124: 0.0006895708449 | E124: 2.393423912e-09 | F124: 288110.6191 | G124: -0.0006719833418 | H124: -3.162595018e-09 | I124: 212478.4672 | M124: 0.8620980374
C125: 7.331337325 | D125: 0.0006546974579 | E125: 2.229297224e-09 | F125: 293678.8558 | G125: -0.0006379994005 | H125: -2.925668984e-09 | I125: 218069.5779 | M125: 0.8651832025
C126: 7.383233533 | D126: 0.0006215877086 | E126: 2.077466099e-09 | F126: 299204.7422 | G126: -0.0006057341152 | H126: -2.707974219e-09 | I126: 223685.3331 | M126: 0.8682466054
C127: 7.435129741 | D127: 0.0005901524052 | E127: 1.936932507e-09 | F127: 304684.0316 | G127: -0.0005751005692 | H127: -2.507831057e-09 | I127: 229321.8945 | M127: 0.8712885512
C128: 7.487025948 | D128: 0.0005603068667 | E128: 1.806785586e-09 | F128: 310112.5397 | G128: -0.0005460162411 | H128: -2.323716762e-09 | I128: 234975.3852 | M128: 0.8743093383
C129: 7.538922156 | D129: 0.0005319706945 | E129: 1.686193498e-09 | F129: 315486.1497 | G129: -0.0005184027829 | H129: -2.154249918e-09 | I129: 240641.8952 | M129: 0.877309259
C130: 7.590818363 | D130: =EXP(-x) -> 0.0005050675561 | E130: =1/x^10 -> 1.574396097e-09 | F130: 320800.8181 | G130: -0.000492185809 | H130: -1.998176476e-09 | I130: 246317.4874 | M130: 0.8802885995
C131: 7.642714571 | D131: 0.0004795249791 | E131: 1.470698316e-09 | F131: 326052.5791 | G131: =(D132-D131)/dx -> -0.0004672946954 | H131: =(E132-E131)/dx -> -1.854357251e-09 | I131: 251998.2033 | M131: =LOG(C131) -> 0.8832476405
C132: =C131+dx -> 7.694610778 | D132: 0.0004552741566 | E132: 1.374464207e-09 | F132: =D132/E132 -> 331237.55 | G132: -0.0004436623901 | H132: -1.721756723e-09 | I132: =G132/H132 -> 257680.0684 | M132: 0.8861866565
C133: 7.746506986 | D133: 0.0004322497611 | E133: 1.285111563e-09 | F133: 336351.9351 | G133: -0.0004212252318 | H133: -1.599432997e-09 | I133: 263359.0982 | M133: 0.8891059169
C134: 7.798403194 | D134: 0.0004103897691 | E134: 1.202107056e-09 | F134: 341392.0307 | G134: -0.0003999227788 | H134: -1.486528793e-09 | I134: 269031.3035 | M134: 0.8920056854
C135: 7.850299401 | D135: 0.0003896352935 | E135: 1.124961849e-09 | F135: 346354.2286 | G135: -0.0003796976461 | H135: -1.382263348e-09 | I135: 274692.6963 | M135: 0.8948862205
C136: 7.902195609 | D136: 0.0003699304257 | E136: 1.053227624e-09 | F136: 351235.0201 | G136: -0.0003604953508 | H136: -1.285925153e-09 | I136: 280339.2949 | M136: 0.8977477759
C137: 7.954091816 | D137: 0.0003512220841 | E137: 9.864929851e-10 | F137: 356031.0001 | G137: -0.0003422641655 | H137: -1.196865408e-09 | I137: 285967.1298 | M137: 0.9005905999
C138: 8.005988024 | D138: 0.0003334598719 | E138: 9.243802094e-10 | F138: 360738.8697 | G138: -0.0003249549785 | H138: -1.114492138e-09 | I138: 291572.2485 | M138: 0.9034149361
C139: 8.057884232 | D139: 0.0003165959409 | E139: 8.665422941e-10 | F139: 365355.4397 | G139: -0.000308521162 | H139: -1.038264894e-09 | I139: 297150.7211 | M139: 0.9062210235
C140: 8.109780439 | D140: 0.0003005848626 | E140: 8.126602836e-10 | F140: 369877.6336 | G140: -0.0002929184463 | H140: -9.676899815e-10 | I140: 302698.6451 | M140: 0.9090090965
C141: 8.161676647 | D141: 0.0002853835061 | E141: 7.624408435e-10 | F141: 374302.4899 | G141: -0.0002781048003 | H141: -9.023161467e-10 | I141: 308212.1509 | M141: 0.9117793847
C142: 8.213572854 | D142: 0.0002709509217 | E142: 7.156140574e-10 | F142: 378627.1648 | G142: -0.0002640403189 | H142: -8.417306968e-10 | I142: 313687.4061 | M142: 0.9145321137
C143: 8.265469062 | D143: 0.0002572482305 | E143: 6.719314264e-10 | F143: 382848.9342 | G143: -0.0002506871148 | H143: -7.855559887e-10 | I143: 319120.6209 | M143: 0.9172675046
C144: 8.317365269 | D144: 0.0002442385199 | E144: 6.311640498e-10 | F144: 386965.1955 | G144: -0.0002380092169 | H144: -7.334462595e-10 | I144: 324508.052 | M144: 0.9199857746
C145: 8.369261477 | D145: 0.0002318867442 | E145: 5.931009704e-10 | F145: 390973.4695 | G145: -0.0002259724732 | H145: -6.850847603e-10 | I145: 329846.0079 | M145: 0.9226871365
C146: 8.421157685 | D146: 0.0002201596298 | E146: 5.575476695e-10 | F146: 394871.4018 | G146: -0.0002145444589 | H146: -6.401811632e-10 | I146: 335130.8523 | M146: 0.9253717995
C147: 8.473053892 | D147: 0.000209025586 | E147: 5.24324695e-10 | F147: 398656.7637 | G147: -0.0002036943889 | H147: -5.984692141e-10 | I147: 340359.0094 | M147: 0.9280399687
C148: 8.5249501 | D148: 0.0001984546198 | E148: 4.932664124e-10 | F148: 402327.4538 | G148: -0.0001933930351 | H148: -5.597046067e-10 | I148: 345526.9668 | M148: 0.9306918456
C149: 8.576846307 | D149: 0.0001884182547 | E149: 4.64219866e-10 | F149: 405881.4982 | G149: -0.0001836126474 | H149: -5.236630552e-10 | I149: 350631.2802 | M149: 0.9333276278
C150: 8.628742515 | D150: 0.0001788894546 | E150: 4.370437393e-10 | F150: 409317.0511 | G150: -0.0001743268794 | H150: -4.901385468e-10 | I150: 355668.5768 | M150: 0.9359475097
C151: 8.680638723 | D151: 0.0001698425507 | E151: 4.116074076e-10 | F151: 412632.3957 | G151: -0.0001655107167 | H151: -4.589417562e-10 | I151: 360635.5589 | M151: 0.9385516818
C152: 8.73253493 | D152: 0.0001612531722 | E152: 3.877900709e-10 | F152: 415825.9436 | G152: -0.0001571404103 | H152: -4.298986054e-10 | I152: 365529.0069 | M152: 0.9411403315
C153: 8.784431138 | D153: 0.0001530981808 | E153: 3.654799636e-10 | F153: 418896.2352 | G153: -0.000149193412 | H153: -4.028489557e-10 | I153: 370345.7832 | M153: 0.9437136427
C154: 8.836327345 | D154: 0.0001453556085 | E154: 3.445736306e-10 | F154: 421841.9392 | G154: -0.000141648314 | H154: -3.776454184e-10 | I154: 375082.8346 | M154: 0.9462717961
C155: 8.888223553 | D155: 0.0001380045982 | E155: 3.249752656e-10 | F155: 424661.8523 | G155: -0.0001344847912 | H155: -3.541522738e-10 | I155: 379737.1954 | M155: 0.9488149693
C156: 8.94011976 | D156: 0.0001310253476 | E156: 3.065961057e-10 | F156: 427354.8984 | G156: -0.0001276835463 | H156: -3.322444865e-10 | I156: 384305.9901 | M156: 0.9513433366
C157: 8.992015968 | D157: 0.0001243990558 | E157: 2.893538768e-10 | F157: 429920.128 | G157: -0.0001212262581 | H157: -3.118068095e-10 | I157: 388786.4357 | M157: 0.9538570694
C158: 9.043912176 | D158: 0.0001181078727 | E158: 2.731722859e-10 | F158: 432356.7169 | G158: -0.0001150955316 | H158: -2.927329676e-10 | I158: 393175.8441 | M158: 0.9563563363
C159: 9.095808383 | D159: 0.0001121348511 | E159: 2.579805551e-10 | F159: 434663.9656 | G159: -0.0001092748519 | H159: -2.749249135e-10 | I159: 397471.6243 | M159: 0.9588413027
C160: 9.147704591 | D160: 0.0001064639007 | E160: 2.437129947e-10 | F160: 436841.297 | G160: -0.0001037485391 | H160: -2.582921489e-10 | I160: 401671.2841 | M160: 0.9613121314
C161: 9.199600798 | D161: 0.000101079745 | E161: 2.303086117e-10 | F161: 438888.2562 | G161: -9.850170627e-05 | H161: -2.42751105e-10 | I161: 405772.4321 | M161: 0.9637689823
C162: 9.251497006 | D162: 9.596787998e-05 | E162: 2.1771075e-10 | F162: 440804.5078 | G162: -9.352021938e-05 | H162: -2.282245774e-10 | I162: 409772.7792 | M162: 0.9662120126
C163: 9.303393214 | D163: 9.111453526e-05 | E163: 2.058667599e-10 | F163: 442589.8348 | G163: -8.879065921e-05 | H163: -2.146412096e-10 | I163: 413670.14 | M163: 0.9686413771
C164: 9.355289421 | D164: 8.650663678e-05 | E164: 1.947276952e-10 | F164: 444244.1365 | G164: -8.430028517e-05 | H164: -2.019350205e-10 | I164: 417462.4339 | M164: 0.9710572277
C165: 9.407185629 | D165: 8.213177168e-05 | E165: 1.842480334e-10 | F165: 445767.4265 | G165: -8.0037001e-05 | H165: -1.900449737e-10 | I165: 421147.6865 | M165: 0.9734597139
C166: 9.459081836 | D166: 7.797815487e-05 | E166: 1.7438542e-10 | F166: 447159.8306 | G166: -7.598932217e-05 | H166: -1.789145818e-10 | I166: 424724.0299 | M166: 0.9758489828
C167: 9.510978044 | D167: 7.403459723e-05 | E167: 1.651004317e-10 | F167: 448421.5847 | G167: -7.214634496e-05 | H167: -1.684915454e-10 | I167: 428189.7041 | M167: 0.9782251791
C168: 9.562874251 | D168: 7.029047553e-05 | E168: 1.563563595e-10 | F168: 449553.0323 | G168: -6.849771709e-05 | H168: -1.587274224e-10 | I168: 431543.0571 | M168: 0.980588445
C169: 9.614770459 | D169: 6.673570379e-05 | E169: 1.481190083e-10 | F169: 450554.6221 | G169: -6.503360979e-05 | H169: -1.495773243e-10 | I169: 434782.5453 | M169: 0.9829389204
C170: 9.666666667 | D170: 6.336070607e-05 | E170: 1.403565124e-10 | F170: 451426.9057 | G170: -6.174469138e-05 | H170: -1.409996389e-10 | I170: 437906.734 | M170: 0.9852767432
C171: 9.718562874 | D171: 6.015639075e-05 | E171: 1.330391659e-10 | F171: 452170.5347 | G171: -5.862210212e-05 | H171: -1.32955775e-10 | I171: 440914.2973 | M171: 0.9876020487
C172: 9.770459082 | D172: 5.711412597e-05 | E172: 1.261392653e-10 | F172: 452786.2582 | G172: -5.56574303e-05 | H172: -1.254099288e-10 | I172: 443804.0178 | M172: 0.9899149703
C173: 9.822355289 | D173: 5.422571642e-05 | E173: 1.196309656e-10 | F173: 453274.9203 | G173: -5.284268962e-05 | H173: -1.183288693e-10 | I173: 446574.787 | M173: 0.9922156392
C174: 9.874251497 | D174: 5.148338123e-05 | E174: 1.134901461e-10 | F174: 453637.4567 | G174: -5.017029768e-05 | H174: -1.116817413e-10 | I174: 449225.6041 | M174: 0.9945041845
C175: 9.926147705 | D175: 4.887973304e-05 | E175: 1.076942873e-10 | F175: 453874.8924 | G175: -4.763305554e-05 | H175: -1.05439884e-10 | I175: 451755.5762 | M175: 0.9967807334
C176: 9.978043912 | D176: 4.64077581e-05 | E176: 1.022223571e-10 | F176: 453988.3387 | G176: -4.522412832e-05 | H176: -9.957666515e-11 | I176: 454163.9174 | M176: 0.9990454109
C177: 10.02994012 | D177: 4.406079735e-05 | E177: 9.705470586e-11 | F177: 453978.9901 | G177: -4.29370268e-05 | H177: -9.406732769e-11 | I177: 456449.9476 | M177: 1.00129834
C178: 10.08183633 | D178: 4.18325285e-05 | E178: 9.21729683e-11 | F178: 453848.1213 | G178: -4.076558994e-05 | H178: -8.8888849e-11 | I178: 458613.0926 | M178: 1.003539643
C179: 10.13373253 | D179: 3.971694898e-05 | E179: 8.755997414e-11 | F179: 453597.0844 | G179: -3.870396827e-05 | H179: -8.401981142e-11 | I179: 460652.8819 | M179: 1.005769438
C180: 10.18562874 | D180: 3.770835981e-05 | E180: 8.319966456e-11 | F180: 453227.3057 | G180: -3.674660816e-05 | H180: -7.944028297e-11 | I180: 462568.9485 | M180: 1.007987842
C181: 10.23752495 | D181: 3.58013502e-05 | E181: 7.907701515e-11 | F181: 452740.2828 | G181: -3.488823683e-05 | H181: -7.513170743e-11 | I181: 464361.0271 | M181: 1.010194973
C182: 10.28942116 | D182: 3.399078302e-05 | E182: 7.517796446e-11 | F182: 452137.5813 | G182: -3.312384816e-05 | H182: -7.107680317e-11 | I182: 466028.953 | M182: 1.012390944
C183: 10.34131737 | D183: 3.227178092e-05 | E183: 7.148934793e-11 | F183: 451420.832 | G183: -3.144868921e-05 | H183: -6.725946975e-11 | I183: 467572.6605 | M183: 1.014575866
C184: 10.39321357 | D184: 3.063971322e-05 | E184: 6.799883653e-11 | F184: 450591.7275 | G184: -2.985824739e-05 | H184: -6.366470185e-11 | I184: 468992.1812 | M184: 1.016749852
C185: 10.44510978 | D185: 2.909018341e-05 | E185: 6.469487994e-11 | F185: 449652.0194 | G185: -2.834823834e-05 | H185: -6.02785099e-11 | I185: 470287.6429 | M185: 1.018913009
C186: 10.49700599 | D186: 2.761901735e-05 | E186: 6.156665388e-11 | F186: 448603.5152 | G186: -2.691459437e-05 | H186: -5.708784668e-11 | I186: 471459.2673 | M186: 1.021065445
C187: 10.5489022 | D187: 2.622225198e-05 | E187: 5.860401114e-11 | F187: 447448.0751 | G187: -2.555345349e-05 | H187: -5.40805397e-11 | I187: 472507.3682 | M187: 1.023207266
C188: 10.6007984 | D188: 2.489612465e-05 | E188: 5.579743623e-11 | F188: 446187.6088 | G188: -2.426114904e-05 | H188: -5.124522866e-11 | I188: 473432.3501 | M188: 1.025338576
C189: 10.65269461 | D189: 2.363706302e-05 | E189: 5.31380032e-11 | F189: 444824.0731 | G189: -2.303419977e-05 | H189: -4.857130762e-11 | I189: 474234.7057 | M189: 1.027459477
C190: 10.70459082 | D190: 2.244167541e-05 | E190: 5.061733654e-11 | F190: 443359.4682 | G190: -2.186930052e-05 | H190: -4.604887165e-11 | I190: 474915.014 | M190: 1.029570071
C191: 10.75648703 | D191: 2.130674165e-05 | E191: 4.822757474e-11 | F191: 441795.835 | G191: -2.076331324e-05 | H191: -4.366866735e-11 | I191: 475473.9383 | M191: 1.031670458
C192: 10.80838323 | D192: 2.022920444e-05 | E192: 4.596133651e-11 | F192: 440135.2522 | G192: -1.971325861e-05 | H192: -4.142204721e-11 | I192: 475912.2241 | M192: 1.033760735
C193: 10.86027944 | D193: 1.920616107e-05 | E193: 4.381168935e-11 | F193: 438379.8333 | G193: -1.871630797e-05 | H193: -3.930092727e-11 | I193: 476230.6967 | M193: 1.035841
C194: 10.91217565 | D194: =EXP(-x) -> 1.823485567e-05 | E194: =1/x^10 -> 4.177212027e-11 | F194: 436531.7239 | G194: -1.776977571e-05 | H194: -3.729774795e-11 | I194: 476430.2589 | M194: 1.037911348
C195: 10.96407186 | D195: 1.73126717e-05 | E195: 3.98365086e-11 | F195: 434593.0984 | G195: =(D196-D195)/dx -> -1.687111204e-05 | H195: =(E196-E195)/dx -> -3.540543779e-11 | I195: 476511.889 | M195: =LOG(C195) -> 1.039971873
C196: =C195+dx -> 11.01596806 | D196: 1.643712497e-05 | E196: 3.799910065e-11 | F196: =D196/E196 -> 432566.1578 | G196: -1.601789613e-05 | H196: -3.361737983e-11 | I196: =G196/H196 -> 476476.6382 | M196: 1.042022668
C197: 11.06786427 | D197: 1.560585691e-05 | E197: 3.625448613e-11 | F197: 430453.1266 | G197: -1.520782956e-05 | H197: -3.192738047e-11 | I197: 476325.6281 | M197: 1.044063825
C198: 11.11976048 | D198: 1.481662823e-05 | E198: 3.459757616e-11 | F198: 428256.25 | G198: -1.443873015e-05 | H198: -3.032964053e-11 | I198: 476060.0488 | M198: 1.046095433
C199: 11.17165669 | D199: 1.406731289e-05 | E199: 3.302358284e-11 | F199: 425977.7916 | G199: -1.37085261e-05 | H199: -2.881872854e-11 | I199: 475681.1558 | M199: 1.048117581
C200: 11.22355289 | D200: 1.335589237e-05 | E200: 3.152800012e-11 | F200: 423620.0305 | G200: -1.301525036e-05 | H200: -2.73895558e-11 | I200: 475190.2682 | M200: 1.050130358
... 304 more rows

Sheet Defining Function
A1: Defining a Function in Excel
A3: Computers have very specific rules you must follow when defining a function. If you don't, the program will either not work at all or will work incorrectly.
A5: 1. The Variable used should be the one named in the instruction, usually x, though sometimes y, t, Q (for an angle theta),
A6: or even x and y (for a function of two variables).
A8: 2. Order of Operations: There five arithmetic operations, addition (+), subtraction (-), multiplication (*), division (/), and exponentiation or power (^). When computers see any of these operation symbols, they perform the indicated steps in a very particular order. First, the power is done. Second, products and quotients of adjacent terms is done. Third, and last, sums and differences of adjacent terms are done. So, in 10*x^3 + 5*x – 7, say with x = 2, the first pass only calculates 2^3 and ignores the multiplications and the sums and differences to calculate 2^3 = 8. The second pass looks at 10*8 + 5*2 – 7 and only does the multiplications, so it produces 80 + 10 - 7. The third pass looks at the +’s and –‘s to produce 80 + 10 – 7 = 83.
A10: 3. Parentheses If you need an operation involving more than two adjacent terms, as in Ö4^3 + 6^2, the computer would take the square root of 4 to produce 2^3 + 6^2; it would then cube the 2 and square the 6 to produce 8 + 36; and finally it would add the 8 and the 36 to get 44. If you actually wanted the square root of the entire expression, you would need to use parentheses, as in Ö(4^3 + 6^2) to tell the computer to do all the operations inside the parentheses before taking the square root. Therefore, it would calculate (4^3 + 6^2) = 64 + 36 = 100 and then take the square root of Ö100 = 10.
A12: 4. Built-In Functions Computer programs have built-in functions for most common algebraic functions. In Excel, the square root function is denoted by SQRT(…), so SQRT(100) = 10. Alternatively, you could enter it as 100^.5 or 100^(1/2); notice that parentheses are needed to have the ½ done first. The common trig functions are SIN (…), COS (…), and TAN (…), where the arguments are automatically interpreted as being in radians, not degrees. The logarithm to the base 10 is represented by LOG (…) and the logarithm with the base e, known as the natural logarithm, is LN (…). The corresponding exponential function with base e is EXP (x). If x is the variable, then each of these would be SQRT (x), SIN (x), COS (x), TAN (x), LOG (x) (for log with base 10 ), LN (x) (for log with base e ), and EXP (x).

Sheet Sheet3
